lending/lending_fUSD_20240208
["ID","MTS","AMOUNT","RATE_DAILY","PERIOD"]
[313595207,1707436121273,2000.0,0.0002161,2]
[313595208,1707436134526,640.0,0.00021613,2]
[313595209,1707436135157,2705.0,0.00021613,2]
[313595210,1707436196272,250.0,0.00021918,2]
[313595211,1707436223293,17626.92,0.00021616,2]
[313595212,1707436228319,177.07,0.00022,2]
[313595229,1707436234442,-654.47001255,0.00022513,2]
[313595230,1707436234452,-752.35288034,0.00022514,2]
[313595231,1707436234463,-609.86344662,0.00022514,2]
[313595232,1707436234475,-329.30286844,0.00022514,2]
[313595233,1707436234487,-488.10574325,0.00022514,2]
[313595234,1707436234497,-218.34785309,0.00022515,2]
[313595235,1707436234506,-227.70297419,0.00022517,2]
[313595236,1707436234515,-227.70297419,0.00022543,2]
[313595237,1707436234524,-1544.73199931,0.00022543,2]
[313595238,1707436234533,-233.99069741,0.00022548,2]
[313595239,1707436234542,-150.0,0.00022554,2]
[313595240,1707436234552,-1549.87,0.00022555,2]
[313595241,1707436234561,-771.04406405,0.00022555,2]
[313595242,1707436234593,-1189.22593595,0.00022555,2]
[313595243,1707436234602,-4236.76,0.00022555,2]
[313595244,1707436234611,-42271.47,0.00022555,2]
[313595245,1707436234621,-499.99,0.00022555,2]
[313595246,1707436234630,-766.64494329,0.00022555,2]
[313595247,1707436234639,-517.26,0.00022558,2]
[313595248,1707436234648,-421.53368202,0.00022558,2]
[313595249,1707436234658,-261.96492302,0.00022558,2]
[313595250,1707436234668,-559.94045584,0.00022558,2]
[313595251,1707436234677,-673.17387207,0.00022558,2]
[313595252,1707436234686,-3478.9092,0.00022558,2]
[313595253,1707436234695,-227.70297419,0.00022568,2]
[313595254,1707436234705,-559.94045578,0.00022589,2]
[313595255,1707436234715,-718.73,0.00022591,2]
[313595256,1707436234724,-710.01,0.00022592,2]
[313595257,1707436234733,-731.26,0.00022593,2]
[313595258,1707436234742,-6387.23,0.00022593,2]
[313595259,1707436234751,-227.70297419,0.00022594,2]
[313595260,1707436234761,-736.28,0.00022594,2]
[313595261,1707436234770,-184.44865705,0.00022594,2]
[313595262,1707436234779,-729.29,0.00022596,2]
[313595263,1707436234788,-718.36,0.00022597,2]
[313595264,1707436234798,-715.77,0.00022597,2]
[313595265,1707436234807,-227.70297419,0.00022619,2]
[313595266,1707436234816,-559.94045578,0.0002262,2]
[313595267,1707436234825,-188.79397858,0.00022641,2]
[313595268,1707436234834,-421.53368201,0.00022644,2]
[313595269,1707436234843,-227.70297419,0.00022645,2]
[313595270,1707436234853,-299.41085415,0.00022647,2]
[313595271,1707436234862,-559.94045578,0.00022651,2]
[313595272,1707436234871,-374.80887003,0.00022655,2]
[313595273,1707436234881,-1813.70660022,0.00022655,2]
[313595274,1707436234890,-2060.42660486,0.00022655,2]
[313595275,1707436234900,-18735.16373881,0.00022655,2]
[313595276,1707436234909,-156.0,0.00022655,2]
[313595277,1707436234918,-216.04122801,0.00022655,2]
[313595278,1707436234928,-405.7124139,0.00022655,2]
[313595279,1707436234937,-500.0,0.00022656,2]
[313595280,1707436234946,-500.0,0.00022656,2]
[313595281,1707436234955,-500.0,0.00022656,2]
[313595282,1707436234965,-500.0,0.00022656,2]
[313595283,1707436234974,-500.0,0.00022656,2]
[313595284,1707436234985,-500.0,0.00022656,2]
[313595285,1707436234994,-500.0,0.00022656,2]
[313595286,1707436235003,-500.0,0.00022656,2]
[313595287,1707436235013,-500.0,0.00022656,2]
[313595288,1707436235023,-500.0,0.00022656,2]
[313595289,1707436235032,-500.0,0.00022656,2]
[313595290,1707436235041,-500.0,0.00022656,2]
[313595291,1707436235051,-500.0,0.00022656,2]
[313595292,1707436235060,-500.0,0.00022656,2]
[313595293,1707436235070,-500.0,0.00022656,2]
[313595294,1707436235080,-500.0,0.00022656,2]
[313595295,1707436235090,-500.0,0.00022656,2]
[313595296,1707436235101,-500.0,0.00022656,2]
[313595297,1707436235110,-500.0,0.00022656,2]
[313595298,1707436235119,-500.0,0.00022656,2]
[313595299,1707436235129,-500.0,0.00022656,2]
[313595300,1707436235139,-500.0,0.00022656,2]
[313595301,1707436235148,-500.0,0.00022656,2]
[313595302,1707436235158,-500.0,0.00022656,2]
[313595303,1707436235168,-500.0,0.00022656,2]
[313595304,1707436235178,-500.0,0.00022656,2]
[313595305,1707436235187,-500.0,0.00022656,2]
[313595306,1707436235403,-500.0,0.00022656,2]
[313595307,1707436235413,-500.0,0.00022656,2]
[313595308,1707436235423,-500.0,0.00022656,2]
[313595309,1707436235432,-500.0,0.00022656,2]
[313595310,1707436235442,-500.0,0.00022656,2]
[313595311,1707436235451,-500.0,0.00022656,2]
[313595312,1707436235461,-500.0,0.00022656,2]
[313595313,1707436235471,-500.0,0.00022656,2]
[313595314,1707436235480,-500.0,0.00022656,2]
[313595315,1707436235490,-207.14243438,0.00022656,2]
[313595316,1707436235499,-500.0,0.00022656,2]
[313595317,1707436235508,-500.0,0.00022656,2]
[313595318,1707436235518,-500.0,0.00022656,2]
[313595319,1707436235528,-500.0,0.00022656,2]
[313595320,1707436235537,-500.0,0.00022656,2]
[313595321,1707436235546,-500.0,0.00022656,2]
[313595322,1707436235556,-500.0,0.00022656,2]
[313595323,1707436235566,-500.0,0.00022656,2]
[313595324,1707436235576,-500.0,0.00022656,2]
[313595325,1707436235585,-500.0,0.00022656,2]
[313595326,1707436235595,-500.0,0.00022656,2]
[313595327,1707436235605,-500.0,0.00022656,2]
[313595328,1707436235614,-500.0,0.00022656,2]
[313595329,1707436235624,-500.0,0.00022656,2]
[313595330,1707436235636,-500.0,0.00022656,2]
[313595331,1707436235645,-500.0,0.00022656,2]
[313595332,1707436235654,-500.0,0.00022656,2]
[313595333,1707436235664,-500.0,0.00022656,2]
[313595334,1707436235673,-419.15488078,0.00022656,2]
[313595335,1707436235683,-500.0,0.00022656,2]
[313595336,1707436235693,-500.0,0.00022656,2]
[313595337,1707436235702,-500.0,0.00022656,2]
[313595338,1707436235711,-500.0,0.00022656,2]
[313595339,1707436235720,-500.0,0.00022656,2]
[313595340,1707436235729,-1061448.83818006,0.00022657,2]
[313595341,1707436235739,-539.8606,0.00022658,2]
[313595342,1707436235748,-195881.7353,0.00022658,2]
[313595343,1707436235757,-178.02648423,0.00022659,2]
[313595344,1707436235767,-227.70297419,0.0002267,2]
[313595345,1707436235776,-559.94045578,0.00022682,2]
[313595346,1707436235786,-227.70297419,0.00022696,2]
[313595347,1707436235795,-559.94045578,0.00022713,2]
[313595348,1707436235805,-227.70297419,0.00022721,2]
[313595349,1707436235814,-150.0,0.00022726,2]
[313595350,1707436235823,-150.0,0.00022729,2]
[313595351,1707436235833,-421.53368201,0.00022729,2]
[313595352,1707436235844,-150.0,0.00022735,2]
[313595353,1707436235854,-150.0,0.00022736,2]
[313595354,1707436235865,-150.0,0.00022738,2]
[313595355,1707436235875,-150.0,0.00022743,2]
[313595356,1707436235886,-559.94045578,0.00022745,2]
[313595357,1707436235896,-300.0,0.00022746,2]
[313595358,1707436235905,-150.0,0.00022746,2]
[313595359,1707436235914,-227.70297419,0.00022747,2]
[313595360,1707436235923,-1500.0,0.00022756,2]
[313595361,1707436235932,-150.0,0.00022757,2]
[313595362,1707436235941,-150.0,0.00022758,2]
[313595363,1707436235950,-150.0,0.00022761,2]
[313595364,1707436235959,-1500.0,0.00022762,2]
[313595365,1707436235968,-150.0,0.00022762,2]
[313595366,1707436235978,-150.0,0.00022762,2]
[313595367,1707436235987,-150.0,0.00022763,2]
[313595368,1707436235996,-300.0,0.00022764,2]
[313595369,1707436236006,-150.0,0.00022765,2]
[313595370,1707436236015,-150.0,0.00022767,2]
[313595371,1707436236025,-300.0,0.00022769,2]
[313595372,1707436236034,-161.13754064,0.00022769,2]
[313595373,1707436236043,-150.0,0.0002277,2]
[313595374,1707436236053,-150.0,0.00022771,2]
[313595375,1707436236062,-227.70297419,0.00022772,2]
[313595376,1707436236071,-150.0,0.00022773,2]
[313595377,1707436236080,-559.94045578,0.00022776,2]
[313595378,1707436236092,-150.0,0.00022777,2]
[313595379,1707436236102,-150.0,0.00022778,2]
[313595380,1707436236112,-150.0,0.00022781,2]
[313595381,1707436236121,-150.0,0.00022782,2]
[313595382,1707436236131,-150.0,0.00022782,2]
[313595383,1707436236141,-150.0,0.00022786,2]
[313595384,1707436236150,-1500.0,0.00022792,2]
[313595385,1707436236159,-150.0,0.00022794,2]
[313595386,1707436236168,-150.0,0.00022795,2]
[313595387,1707436236178,-150.0,0.00022796,2]
[313595388,1707436236187,-150.0,0.00022796,2]
[313595389,1707436236196,-227.70297419,0.00022798,2]
[313595390,1707436236205,-150.0,0.00022802,2]
[313595391,1707436236214,-150.0,0.00022802,2]
[313595392,1707436236223,-150.0,0.00022806,2]
[313595393,1707436236233,-559.94045578,0.00022807,2]
[313595394,1707436236242,-150.0,0.00022813,2]
[313595395,1707436236251,-150.0,0.00022813,2]
[313595396,1707436236261,-421.53368201,0.00022815,2]
[313595397,1707436236270,-500.0,0.00022815,2]
[313595398,1707436236280,-200.0,0.00022815,2]
[313595399,1707436236289,-800.0,0.00022815,2]
[313595400,1707436236299,-150.0,0.00022815,2]
[313595401,1707436236308,-500.0,0.00022816,2]
[313595402,1707436236318,-500.0,0.00022816,2]
[313595403,1707436236327,-500.0,0.00022816,2]
[313595404,1707436236336,-200.0,0.00022816,2]
[313595405,1707436236346,-200.0,0.00022816,2]
[313595406,1707436236355,-800.0,0.00022816,2]
[313595407,1707436236364,-150.0,0.00022818,2]
[313595408,1707436236374,-150.0,0.00022819,2]
[313595409,1707436236385,-150.0,0.0002282,2]
[313595410,1707436236394,-169.16423206,0.00022821,2]
[313595411,1707436236403,-150.0,0.00022822,2]
[313595412,1707436236412,-150.0,0.00022823,2]
[313595413,1707436236422,-150.0,0.00022823,2]
[313595414,1707436236431,-227.70297419,0.00022823,2]
[313595415,1707436236440,-1500.0,0.00022828,2]
[313595416,1707436236450,-1500.0,0.00022828,2]
[313595417,1707436236458,-1500.0,0.0002283,2]
[313595418,1707436236468,-150.0,0.0002283,2]
[313595419,1707436236478,-300.0,0.00022832,2]
[313595420,1707436236487,-150.0,0.00022833,2]
[313595421,1707436236496,-300.0,0.00022835,2]
[313595422,1707436236506,-150.0,0.00022837,2]
[313595423,1707436236515,-150.0,0.00022837,2]
[313595424,1707436236525,-559.94045578,0.00022838,2]
[313595425,1707436236534,-150.0,0.00022838,2]
[313595426,1707436236544,-150.0,0.00022839,2]
[313595427,1707436236554,-150.0,0.0002284,2]
[313595428,1707436236563,-300.0,0.0002284,2]
[313595429,1707436236572,-150.0,0.00022841,2]
[313595430,1707436236582,-150.0,0.00022844,2]
[313595431,1707436236592,-150.0,0.00022845,2]
[313595432,1707436236601,-150.0,0.00022845,2]
[313595433,1707436236610,-152.09529989,0.00022845,2]
[313595434,1707436236619,-150.0,0.00022845,2]
[313595435,1707436236629,-150.0,0.00022846,2]
[313595436,1707436236638,-150.0,0.00022847,2]
[313595437,1707436236647,-150.0,0.00022848,2]
[313595438,1707436236657,-227.70297419,0.00022849,2]
[313595439,1707436236666,-150.0,0.00022849,2]
[313595440,1707436236675,-1500.0,0.0002285,2]
[313595441,1707436236684,-150.0,0.0002285,2]
[313595442,1707436236693,-1500.0,0.00022852,2]
[313595443,1707436236703,-150.0,0.00022854,2]
[313595444,1707436236711,-150.0,0.00022856,2]
[313595445,1707436236720,-1500.0,0.00022856,2]
[313595446,1707436236730,-150.0,0.00022856,2]
[313595447,1707436236740,-150.0,0.00022858,2]
[313595448,1707436236749,-150.0,0.0002286,2]
[313595449,1707436236758,-150.0,0.00022862,2]
[313595450,1707436236767,-300.0,0.00022863,2]
[313595451,1707436236776,-150.0,0.00022864,2]
[313595452,1707436236785,-150.0,0.00022866,2]
[313595453,1707436236794,-150.0,0.00022867,2]
[313595454,1707436236803,-150.0,0.00022868,2]
[313595455,1707436236812,-559.94045578,0.00022869,2]
[313595456,1707436236822,-1500.0,0.00022871,2]
[313595457,1707436236831,-150.0,0.00022872,2]
[313595458,1707436236839,-150.0,0.00022873,2]
[313595459,1707436236848,-227.70297419,0.00022874,2]
[313595460,1707436236857,-150.0,0.00022875,2]
[313595461,1707436236866,-150.0,0.00022876,2]
[313595462,1707436236875,-150.0,0.00022879,2]
[313595463,1707436236885,-150.0,0.0002288,2]
[313595464,1707436236894,-1500.0,0.0002288,2]
[313595465,1707436236903,-150.0,0.00022882,2]
[313595466,1707436236912,-150.0,0.00022882,2]
[313595467,1707436236921,-300.0,0.00022882,2]
[313595468,1707436236931,-150.0,0.00022884,2]
[313595469,1707436236940,-150.0,0.00022884,2]
[313595470,1707436236949,-500.0,0.00022885,2]
[313595471,1707436236958,-501.6691,0.00022885,2]
[313595472,1707436236967,-1000.0,0.00022885,2]
[313595473,1707436236976,-271.4136,0.00022885,2]
[313595474,1707436236986,-150.0,0.00022888,2]
[313595475,1707436236995,-244.19440529,0.00022889,2]
[313595476,1707436237004,-150.0,0.0002289,2]
[313595477,1707436237013,-150.0,0.00022892,2]
[313595478,1707436237022,-1500.0,0.00022892,2]
[313595479,1707436237031,-150.0,0.00022894,2]
[313595480,1707436237040,-150.0,0.00022894,2]
[313595481,1707436237050,-1000.0,0.00022895,2]
[313595482,1707436237058,-150.0,0.00022895,2]
[313595483,1707436237067,-150.0,0.00022897,2]
[313595484,1707436237077,-150.0,0.00022897,2]
[313595485,1707436237087,-358.0673694,0.00022899,2]
[313595486,1707436237099,-6735.6551,0.000229,2]
[313595487,1707436237109,-8477.2,0.000229,2]
[313595488,1707436237118,-3826.6069,0.000229,2]
[313595489,1707436237127,-234.63597224,0.000229,2]
[313595490,1707436237137,-421.53368201,0.000229,2]
[313595491,1707436237146,-5000.0,0.000229,2]
[313595492,1707436237155,-227.70297419,0.000229,2]
[313595493,1707436237165,-559.94045578,0.000229,2]
[313595494,1707436237175,-184.75483576,0.000229,2]
[313595495,1707436237186,-1064.34610418,0.000229,2]
[313595496,1707436237195,-150.0,0.00022902,2]
[313595497,1707436237204,-150.0,0.00022909,2]
[313595498,1707436237213,-300.0,0.0002291,2]
[313595499,1707436237222,-150.0,0.00022911,2]
[313595500,1707436237231,-842.5370952,0.00022912,2]
[313595501,1707436237240,-1500.0,0.00022913,2]
[313595502,1707436237249,-150.0,0.00022914,2]
[313595503,1707436237259,-150.0,0.00022917,2]
[313595504,1707436237268,-150.0,0.00022918,2]
[313595505,1707436237277,-1500.0,0.00022918,2]
[313595506,1707436237287,-1500.0,0.0002292,2]
[313595507,1707436237297,-150.0,0.0002292,2]
[313595508,1707436237307,-150.0,0.00022921,2]
[313595509,1707436237316,-150.0,0.00022925,2]
[313595510,1707436237325,-150.0,0.00022927,2]
[313595511,1707436237335,-150.0,0.00022927,2]
[313595512,1707436237344,-150.0,0.00022932,2]
[313595513,1707436237353,-1500.0,0.00022932,2]
[313595514,1707436237362,-300.0,0.00022933,2]
[313595515,1707436237372,-150.0,0.00022941,2]
[313595516,1707436237382,-150.0,0.00022943,2]
[313595517,1707436237391,-150.0,0.00022951,2]
[313595518,1707436237400,-150.0,0.00022953,2]
[313595519,1707436237410,-150.0,0.00022953,2]
[313595520,1707436237419,-150.0,0.00022953,2]
[313595521,1707436237428,-150.0,0.00022953,2]
[313595522,1707436237438,-150.0,0.00022954,2]
[313595523,1707436237447,-150.0,0.00022955,2]
[313595524,1707436237456,-150.0,0.00022957,2]
[313595525,1707436237465,-300.0,0.00022957,2]
[313595526,1707436237475,-150.0,0.00022958,2]
[313595527,1707436237484,-150.0,0.00022961,2]
[313595528,1707436237494,-150.0,0.00022963,2]
[313595529,1707436237503,-300.0,0.00022966,2]
[313595530,1707436237512,-150.0,0.00022969,2]
[313595531,1707436237522,-150.0,0.00022969,2]
[313595532,1707436237531,-300.0,0.00022969,2]
[313595533,1707436237540,-150.0,0.0002297,2]
[313595534,1707436237550,-358.30876349,0.00022972,2]
[313595535,1707436237559,-150.0,0.00022972,2]
[313595536,1707436237569,-150.0,0.00022974,2]
[313595537,1707436237577,-218.39209122,0.00022975,2]
[313595538,1707436237587,-150.0,0.00022978,2]
[313595539,1707436237596,-300.0,0.00022979,2]
[313595540,1707436237605,-150.0,0.00022979,2]
[313595541,1707436237614,-300.0,0.0002298,2]
[313595542,1707436237623,-150.0,0.00022981,2]
[313595543,1707436237633,-300.0,0.00022984,2]
[313595544,1707436237642,-150.0,0.0002299,2]
[313595545,1707436237651,-299.41085415,0.0002299,2]
[313595546,1707436237661,-299.41085415,0.0002299,2]
[313595547,1707436237670,-1500.0,0.00022996,2]
[313595548,1707436237679,-150.0,0.00022997,2]
[313595549,1707436237689,-150.0,0.00022997,2]
[313595550,1707436237698,-348.26,0.00022998,2]
[313595551,1707436237707,-1926.35044388,0.00022998,2]
[313595552,1707436237716,-168.7180235,0.00022998,2]
[313595553,1707436237725,-567.67668109,0.00022998,2]
[313595554,1707436237734,-705.50788492,0.00022998,2]
[313595555,1707436237744,-303.29043206,0.00022998,2]
[313595556,1707436237753,-56891.02793112,0.00022998,2]
[313595557,1707436237763,-155.35667322,0.00022998,2]
[313595558,1707436237772,-768.37885061,0.00022998,2]
[313595559,1707436237781,-336.46001959,0.00022998,2]
[313595560,1707436237790,-656.26799496,0.00022998,2]
[313595561,1707436237800,-2627.38983297,0.00022998,2]
[313595562,1707436237809,-286.26046709,0.00022998,2]
[313595563,1707436237819,-281.27567579,0.00022998,2]
[313595564,1707436237829,-181.43729233,0.00022998,2]
[313595565,1707436237838,-155.0,0.00022998,2]
[313595566,1707436237848,-155.0,0.00022998,2]
[313595567,1707436237857,-4252.82487268,0.00022998,2]
[313595568,1707436237867,-158.8993738,0.00022998,2]
[313595569,1707436237877,-342.81727514,0.00022998,2]
[313595570,1707436237888,-240.11429772,0.00022998,2]
[313595571,1707436237897,-158.69334098,0.00022998,2]
[313595572,1707436237907,-249.52274701,0.00022998,2]
[313595573,1707436237917,-217.42690474,0.00022998,2]
[313595574,1707436237926,-155.0,0.00022998,2]
[313595575,1707436237936,-856.16974994,0.00022998,2]
[313595576,1707436237945,-176.21885012,0.00022998,2]
[313595577,1707436237955,-155.0,0.00022998,2]
[313595578,1707436237965,-500.0,0.00022998,2]
[313595579,1707436237974,-413.06464927,0.00022998,2]
[313595580,1707436237984,-2788.82514314,0.00022998,2]
[313595581,1707436237993,-245.54677836,0.00022998,2]
[313595582,1707436238003,-630.55738904,0.00022998,2]
[313595583,1707436238012,-222.39757032,0.00022998,2]
[313595584,1707436238021,-210.8048654,0.00022998,2]
[313595585,1707436238030,-247.36889183,0.00022998,2]
[313595586,1707436238039,-155.0,0.00022998,2]
[313595587,1707436238048,-195.90438214,0.00022998,2]
[313595588,1707436238058,-324.40205123,0.00022998,2]
[313595589,1707436238075,-784.17302211,0.00022998,2]
[313595590,1707436238088,-964.68842836,0.00022998,2]
[313595591,1707436238099,-155.40419727,0.00022998,2]
[313595592,1707436238108,-185.76419831,0.00022998,2]
[313595593,1707436238119,-165.96895599,0.00022998,2]
[313595594,1707436238129,-356.35226096,0.00022998,2]
[313595595,1707436238138,-155.08519479,0.00022998,2]
[313595596,1707436238147,-69.56692512,0.00022998,2]
[313595597,1707436238159,-80.43307488,0.00022998,2]
[313595598,1707436238168,-3311.42578551,0.00022999,2]
[313595599,1707436238178,-150.01,0.00022999,2]
[313595600,1707436238187,-446.88403832,0.00022999,2]
[313595601,1707436238196,-500.0,0.00022999,2]
[313595602,1707436238205,-500.0,0.00022999,2]
[313595603,1707436238214,-393.49433292,0.00022999,2]
[313595604,1707436238223,-500.0,0.00022999,2]
[313595605,1707436238232,-500.0,0.00022999,2]
[313595606,1707436238241,-500.0,0.00022999,2]
[313595607,1707436238250,-248.07374907,0.00022999,2]
[313595608,1707436238259,-500.0,0.00022999,2]
[313595609,1707436238268,-500.0,0.00022999,2]
[313595610,1707436238277,-500.0,0.00022999,2]
[313595611,1707436238286,-500.0,0.00022999,2]
[313595612,1707436238296,-349.67938027,0.00022999,2]
[313595613,1707436238305,-444.82896794,0.00022999,2]
[313595614,1707436238314,-500.0,0.00022999,2]
[313595615,1707436238323,-285.48760512,0.00022999,2]
[313595616,1707436238332,-563.20475762,0.00022999,2]
[313595617,1707436238491,-500.0,0.00022999,2]
[313595618,1707436238501,-500.0,0.00022999,2]
[313595619,1707436238511,-500.0,0.00022999,2]
[313595620,1707436238520,-464.85772257,0.00022999,2]
[313595621,1707436238529,-500.0,0.00022999,2]
[313595622,1707436238538,-500.0,0.00022999,2]
[313595623,1707436238547,-300.0,0.00022999,2]
[313595624,1707436238557,-300.0,0.00022999,2]
[313595625,1707436238566,-300.0,0.00022999,2]
[313595626,1707436238575,-300.0,0.00022999,2]
[313595627,1707436238584,-300.0,0.00022999,2]
[313595628,1707436238593,-300.0,0.00022999,2]
[313595629,1707436238602,-300.0,0.00022999,2]
[313595630,1707436238611,-300.0,0.00022999,2]
[313595631,1707436238620,-300.0,0.00022999,2]
[313595632,1707436238629,-300.0,0.00022999,2]
[313595633,1707436238638,-300.0,0.00022999,2]
[313595634,1707436238647,-300.0,0.00022999,2]
[313595635,1707436238657,-300.0,0.00022999,2]
[313595636,1707436238666,-300.0,0.00022999,2]
[313595637,1707436238675,-9.72698509,0.00022999,2]
[313595638,1707436238687,-290.27301491,0.00022999,2]
[313595639,1707436238696,-300.0,0.00022999,2]
[313595640,1707436238704,-300.0,0.00022999,2]
[313595641,1707436238713,-300.0,0.00022999,2]
[313595642,1707436238722,-300.80390357,0.00022999,2]
[313595643,1707436238731,-1000.0,0.00022999,2]
[313595644,1707436238740,-34.54506691,0.00022999,2]
[313595645,1707436238752,-115.45493309,0.00022999,2]
[313595646,1707436238761,-500.0,0.00022999,2]
[313595647,1707436238770,-500.0,0.00022999,2]
[313595648,1707436238779,-500.0,0.00022999,2]
[313595649,1707436238788,-509.2546009,0.00022999,2]
[313595650,1707436238798,-432.5376861,0.00022999,2]
[313595651,1707436238807,-1003.07124314,0.00023,2]
[313595652,1707436238816,-409.65832644,0.00023,2]
[313595653,1707436238831,-553.31996326,0.00023,2]
[313595654,1707436238846,-433.5118233,0.00023,2]
[313595655,1707436238858,-800.0,0.00023,2]
[313595656,1707436238869,-7726.18936928,0.00023,2]
[313595657,1707436238889,-362.73325483,0.00023,2]
[313595658,1707436239678,-300.0,0.00022863,2]
[313595659,1707436239687,-105.4670116,0.000229,2]
[313595660,1707436239699,-676.51160233,0.000229,2]
[313595661,1707436239708,-3724.57428123,0.00023,2]
[313595662,1707436239727,-4755.63298702,0.00023,2]
[313595663,1707436239738,-122670.75994647,0.00023,2]
[313595664,1707436239749,-265.25707154,0.00023,2]
[313595665,1707436239760,-620.15941707,0.00023,2]
[313595666,1707436239771,-315.19030927,0.00023,2]
[313595667,1707436239782,-5136.62864425,0.00023,2]
[313595669,1707436239908,-948.984565,0.00023,2]
[313595670,1707436239919,-10421.3981924,0.00023,2]
[313595671,1707436239930,-266961.44130314,0.00023,2]
[313595672,1707436239941,-598.79650643,0.00023,2]
[313595673,1707436239953,-544.3953379,0.00023,2]
[313595674,1707436240536,-51966.942506,0.00023,2]
[313595675,1707436240548,-24845.0033405,0.00023,2]
[313595676,1707436240559,-48999.5751412,0.00023,2]
[313595677,1707436240571,-209584.76310455,0.00023,2]
[313595678,1707436240583,-725.62826146,0.00023,2]
[313595679,1707436240602,-403.09841461,0.00023,2]
[313595680,1707436241025,-12881.98145614,0.00023,2]
[313595681,1707436241036,-7706.22651829,0.00023,2]
[313595682,1707436241048,-8947.21879473,0.00023,2]
[313595683,1707436241059,-8943.78386462,0.00023,2]
[313595684,1707436241070,-9077.54866152,0.00023,2]
[313595685,1707436241081,-8943.84023489,0.00023,2]
[313595686,1707436241207,-30163.0,0.00023,2]
[313595687,1707436241218,-550.0,0.00023,2]
[313595688,1707436241641,-45292.44527389,0.00023,2]
[313595694,1707436241859,-21343.602,0.00023,2]
[313595695,1707436241879,-8928.31692186,0.00023,2]
[313595701,1707436245650,-3311.42578551,0.00022999,2]
[313595702,1707436245660,-1322788.79220598,0.00023,2]
[313595703,1707436245814,-3970.28368566,0.00023,2]
[313595704,1707436245827,-774.23401556,0.00023,2]
[313595705,1707436245870,-1175.13032026,0.00023,2]
[313595707,1707436246198,-765.94522118,0.000229,2]
[313595708,1707436246360,-6804.15273995,0.000229,2]
[313595709,1707436246373,-3020.45566113,0.000229,2]
[313595710,1707436246382,-1822.74433887,0.00023,2]
[313595711,1707436263318,167.06817934,0.00022999,3]
[313595712,1707436318318,361.2271,0.00022455,90]
[313595713,1707436341877,281.8694785,0.00022895,3]
[313595717,1707436418523,224.50144044,0.00022895,3]
[313595723,1707436448886,1001.66357532,0.0002,2]
[313595724,1707436456739,2476.20957475,0.00022307,2]
[313595727,1707436465124,151.0209,0.00022998,3]
[313595730,1707436490846,151.0209,0.00023,3]
[313595731,1707436491629,203.72811277,0.00022895,3]
[313595732,1707436506863,150.0209,0.00023,3]
[313595733,1707436508799,1092.13,0.00022489,2]
[313595734,1707436532585,660.24,0.00020513,2]
[313595735,1707436542259,191.22,0.00022365,2]
[313595736,1707436570952,170.03981395,0.00022895,3]
[313595737,1707436574112,2000.0,0.00022365,2]
[313595738,1707436575199,150.0,0.00022498,2]
[313595739,1707436615990,488.0,0.0002241,2]
[313595740,1707436617370,200.0,0.0002241,2]
[313595741,1707436624569,208.20948336,0.00022456,2]
[313595742,1707436639951,250.0,0.00022435,2]
[313595743,1707436644455,790.52,0.00022431,2]
[313595744,1707436648211,150.1,0.00022895,3]
[313595745,1707436653921,205.0,0.00021582,2]
[313595746,1707436720555,165.9557002,0.00022895,3]